Cogmind - Beta 13 @@@ ROGUE MODE // 2024.04.14 @ 03:44:43 Player: Michael Result: Destroyed by H-55 Commando with Gauss Rifle Performance ------------- Evolutions (2) 1000 Regions Visited (3) 600 Robots Destroyed (64) 320 Value Destroyed (1400) 1400 Prototype IDs (2) 40 Alien Tech Used (0) 0 Bonus (46) 46 TOTAL SCORE: 3406 Bonus ------- High Alert Combat Kills 46 Cogmind --------- Core Integrity 0/550 Matter 300/300 Energy 4/100 System Corruption 4% Temperature Cool (1) Movement Treading (145) Location -8/Materials Parts ------- > --- POWER (1) -------- (None) > --- PROPULSION (4) --- Advanced Treads > --- UTILITY (4) ------ Weight Redist. System > --- WEAPON (2) ------- (None) > --- INVENTORY (5) ---- High-capacity Matter Pod (200) Advanced Targeting Computer Light Armor Plating Light Assault Rifle Light Assault Rifle Peak State ------------ > --- POWER ------------ Ion Engine > --- PROPULSION ------- Flight Unit Flight Unit Flight Unit Flight Unit > --- UTILITY ---------- High-capacity Matter Pod Weight Redist. System Improved Targeting Computer Improved Targeting Computer > --- WEAPON ----------- Improved Medium Laser Heavy Assault Rifle > --- INVENTORY -------- Light Armor Plating Light Assault Rifle Light Assault Rifle Light Assault Rifle Light Assault Rifle [Rating: 17] Favorites ----------- Power Light Ion Engine Engine Light Ion Engine Propulsion Flight Unit Treads Light Treads Wheel Wheel Hover Unit Hover Unit Flight Unit Flight Unit Utility Improved Targeting Computer Device Improved Heat Sink Storage Medium Storage Unit Processor Improved Targeting Computer Protection Light Armor Plating Weapon Light Assault Rifle Energy Gun Beam Rifle Ballistic Gun Light Assault Rifle Launcher Grenade Launcher Build | -11 -10 -9 -8 ------- Run | Yrd Mat Mat Mat Slots Evolved 4 | . . 2 2 Power . | . . . . Propulsion 2 | . . 1 1 Utility 2 | . . 1 1 Weapon . | . . . . Parts Attached 88 | 7 12 53 16 Power 10 | 1 2 7 . Engine 10 | 1 2 7 . Core . | . . . . Reactor . | . . . . Propulsion 33 | 2 7 18 6 Treads 4 | 1 . . 3 Leg . | . . . . Wheel 4 | 1 3 . . Hover 9 | . 4 5 . Flight 16 | . . 13 3 Utility 24 | 2 3 14 5 Device 6 | 1 . 3 2 Storage 12 | 1 2 9 . Processor 4 | . 1 1 2 Hackware . | . . . . Protection 2 | . . 1 1 Artifact . | . . . . Weapon 21 | 2 . 14 5 Energy Gun 3 | . . 2 1 Energy Cannon . | . . . . Ballistic Gun 16 | 2 . 10 4 Ballistic Cannon . | . . . . Launcher 2 | . . 2 . Special Weapon . | . . . . Impact Weapon . | . . . . Slashing Weapon . | . . . . Piercing Weapon . | . . . . Special Melee Weapon . | . . . . Unidentified Prototypes 2 | . . 2 . Parts Lost 29 | . . 14 15 Power 4 | . . 3 1 Propulsion 15 | . . 7 8 Utility 4 | . . 1 3 Weapon 6 | . . 3 3 Highest Loss Streak 6 | . . 6 6 To Critical Strikes . | . . . . Average Slot Usage (%) 94 | . 100 96 78 Engine 10 | . 14 10 6 Wheel 1 | . 14 . . Hover 9 | . 13 10 . Flight 18 | . . 20 20 Device 8 | . . 8 10 Storage 11 | . 16 11 3 Processor 12 | . 10 11 18 Ballistic Gun 20 | . 28 20 14 Naked Turns . | . . . . Heaviest Build 22 | 9 19 22 16 Greatest Support 50 | 20 20 18 50 Greatest Overweight (x) 6 | . 1 6 1 Average Overweight (x) . | . . . . Largest Inventory Capacity 10 | 5 10 10 10 Average Capacity 7 | 5 8 8 5 Most Carried 10 | 5 10 10 9 Average Carried 6 | 4 7 7 4 Final Capacity 10 | 5 8 10 5 Final Carried 10 | 5 8 10 5 Class Distribution -------------------- 62% | Scavenger-Mutant 32% | Mutant 4% | Scavenger-Sprinter Dominant Class ---------------- Mutant | -10/Materials Scavenger-Mutant | -9/Materials Scavenger-Mutant | -8/Materials Resources | -11 -10 -9 -8 ----------- Run | Yrd Mat Mat Mat Matter Collected 1913 | 408 168 1132 205 Remotely . | . . . . Salvage Created 2028 | 317 102 1236 373 Parts 145 | 27 16 83 19 Haulers Intercepted . | . . . . Recyclers Shooed 1 | . . . 1 Parts Field Recycled . | . . . . Retrieved Matter . | . . . . Parts Self-Destructed . | . . . . Prevented . | . . . . Kills | -11 -10 -9 -8 ------- Run | Yrd Mat Mat Mat Combat Hostiles Destroyed 36 | . 3 25 8 Guns 32 | . 3 21 8 AOE 4 | . . 4 . Classes Destroyed 10 | 3 2 4 1 Worker 7 | 4 . 3 . Tunneler 7 | 7 . . . Recycler 4 | 1 . 2 1 Mechanic 1 | . . 1 . Watcher 9 | . 3 5 1 Swarmer 10 | . 3 4 3 Grunt 17 | . . 13 4 Brawler 1 | . . 1 . Duelist 1 | . . . 1 Sentry 7 | . . 7 . Best Kill Streak 8 | 4 3 8 5 Combat Bots Only 4 | . 3 4 3 Max Kills in Single Turn 2 | 1 2 2 1 Gunslinging 1 | . 1 . . Exploded 1 | . . 1 . Melee . | . . . . Uniques/NPCs Destroyed . | . . . . Combat | -11 -10 -9 -8 -------- Run | Yrd Mat Mat Mat Hostile Shots Fired 349 | . 4 172 173 Missed 118 | . . 63 55 Damage Taken 3049 | . 30 1427 1592 Core 890 | . . 329 561 Absorbed by Shields . | . . . . Regen/Repaired (Parts) 63 | . . 63 . Core Remaining (%) 72 | 100 100 17 . Volleys Fired 200 | 23 8 128 41 Largest 2 | 2 2 2 2 Hottest 79 | 40 40 76 79 Shots Fired 385 | 46 16 245 78 Gun 378 | 46 16 238 78 Cannon . | . . . . Launcher 7 | . . 7 . Special . | . . . . Kinetic 365 | 46 16 235 68 Thermal 13 | . . 3 10 Explosive 7 | . . 7 . Electromagnetic . | . . . . Robot Hit Streak 15 | 11 5 15 11 Robot Miss Streak 6 | 2 6 4 2 Penetration Max . | . . . . Secondary Targets 6 | . 1 3 2 Max Gunslinging Chain 1 | . 1 1 1 Shots Hit Robots 259 | 30 7 163 59 Core Hits 131 | 13 6 76 36 Critical Kills 1 | . . 1 . Critical Parts Destroyed 1 | . . 1 . Critical Strikes 3 | . . 3 . Destroy 3 | . . 3 . Melee Attacks . | . . . . Impact . | . . . . Slashing . | . . . . Piercing . | . . . . Sneak Attacks . | . . . . Combat Hostiles . | . . . . Follow-up Attacks . | . . . . Damage Inflicted 3356 | 398 97 2167 694 Guns 2937 | 398 97 1776 666 Cannons . | . . . . Explosions 391 | . . 391 . Melee . | . . . . Ramming 28 | . . . 28 Kinetic 2774 | 398 97 1747 532 Thermal 163 | . . 29 134 Explosive 391 | . . 391 . Electromagnetic . | . . . . Impact . | . . . . Slashing . | . . . . Piercing . | . . . . Highest Corruption 4 | . . . 4 Average Corruption 4 | . . . 4 Corruption Purged . | . . . . Corruption Blocked . | . . . . Overload Shots . | . . . . Overflow Damage . | . . . . Projectiles . | . . . . Explosions . | . . . . Melee . | . . . . Knockbacks . | . . . . Impact . | . . . . Kinetic . | . . . . Secondary . | . . . . Self-Inflicted Damage 18 | . . 14 4 Shots 1 | . . 1 . Rammed 17 | . . . 17 Targets Rammed 17 | . . . 17 Kicked . | . . . . Crushed . | . . . . Highest Temperature 245 | . 6 28 245 Average Temperature 112 | . 6 14 140 Received Heat Transfer 978 | . . 582 396 Siege Activations . | . . . . Robots Corrupted . | . . . . Combat Hostiles . | . . . . Parts Fried . | . . . . Impact Corruptions . | . . . . Robots Melted . | . . . . Combat Hostiles . | . . . . Parts Melted 2 | . . 1 1 Heat Transferred 370 | . . 74 296 Parts Sabotaged . | . . . . Parts Stolen . | . . . . Parts Stripped . | . . . . Power Chain Reactions . | . . . . Alert | -11 -10 -9 -8 ------- Run | Yrd Mat Mat Mat Peak Influence 472 | 50 127 472 354 Initial 131 | . 6 53 131 Average 234 | 17 84 316 244 Maximum Alert Level 2 | . . 2 1 Low Security (%) 36 | 100 100 9 32 Level 1 58 | . . 82 67 Level 2 4 | . . 7 . Level 3 . | . . . . Level 4 . | . . . . Level 5 . | . . . . High Security . | . . . . Max Security . | . . . . Squads Dispatched 6 | . 1 4 1 Investigation 1 | . . 1 . Extermination . | . . . . Reinforcement 5 | . 1 3 1 Assault . | . . . . Garrison . | . . . . Intercept . | . . . . Searches Triggered . | . . . . Construction Impeded . | . . . . Haulers Reinforced . | . . . . Active Scanning Responses . | . . . . Cargo Convoy Interrupts . | . . . . Stealth | -11 -10 -9 -8 --------- Run | Yrd Mat Mat Mat Distress Signals 4 | . . 2 2 Communications Jammed . | . . . . Distress Signals . | . . . . Times Spotted 68 | . 7 39 22 Peak Tracking Total 6 | . 3 6 6 Tactical Retreats 3 | . . 1 2 Traps | -11 -10 -9 -8 ------- Run | Yrd Mat Mat Mat Traps Triggered . | . . . . Indirectly . | . . . . Trap Hack Attempts . | . . . . Triggered . | . . . . Disarmed . | . . . . Reprogrammed . | . . . . Reused . | . . . . Traps Extracted . | . . . . Installed . | . . . . Triggered . | . . . . Machines | -11 -10 -9 -8 ---------- Run | Yrd Mat Mat Mat Machines Disabled . | . . . . Max in Single Turn . | . . . . Machines Repaired . | . . . . Machines Dismantled . | . . . . Machines Sabotaged . | . . . . Overloaded Fab Kills . | . . . . Hacking | -11 -10 -9 -8 --------- Run | Yrd Mat Mat Mat Machines Accessed 4 | . . 4 . Terminals . | . . . . Fabricators . | . . . . Repair Stations 2 | . . 2 . Recycling Units 1 | . . 1 . Scanalyzers 1 | . . 1 . Garrison Access . | . . . . Total Hacks 11 | . . 11 . Successful 11 | . . 11 . Failed . | . . . . Catastrophic . | . . . . Database Lockouts . | . . . . Manual . | . . . . Terminals . | . . . . Fabricators . | . . . . Repair Stations 4 | . . 4 . Recycling Units 3 | . . 3 . Scanalyzers 4 | . . 4 . Garrison Access . | . . . . Terminal Hacks . | . . . . Fabricator Hacks . | . . . . Repair Station Hacks 4 | . . 4 . Scan Component 2 | . . 2 . Repair 2 | . . 2 . Recycling Unit Hacks 3 | . . 3 . Recycle Component 1 | . . 1 . Report Inventory 1 | . . 1 . Retrieve Matter 1 | . . 1 . Scanalyzer 4 | . . 4 . Insert Component 2 | . . 2 . Analyze 2 | . . 2 . Garrison Access Hacks . | . . . . Unauthorized Hacks . | . . . . Terminals . | . . . . Fabricators . | . . . . Repair Stations . | . . . . Recycling Units . | . . . . Scanalyzers . | . . . . Garrison Access . | . . . . Data Cores Recovered . | . . . . Used . | . . . . Hacking Detections 2 | . . 2 . Full Trace Events 1 | . . 1 . Feedback Events . | . . . . Feedback Blocked . | . . . . Robot Schematics Acquired . | . . . . Robots Built . | . . . . Authchips . | . . . . Time . | . . . . Total Robot Build Rating . | . . . . Part Schematics Acquired 2 | . . 2 . Parts Built . | . . . . Authchips . | . . . . Time . | . . . . Total Part Build Rating . | . . . . Parts Repaired 2 | . . 2 . Time 64 | . . 64 . Parts Recycled 1 | . . 1 . Recycled Matter . | . . . . Retrieved Matter . | . . . . Retrieved Components . | . . . . Parts Scanalyzed 2 | . . 2 . Part Schematics Acquired 2 | . . 2 . Parts Damaged 1 | . . 1 . Bothacking | -11 -10 -9 -8 ------------ Run | Yrd Mat Mat Mat Used RIF Installer . | . . . . Robots Hacked . | . . . . Non-combat . | . . . . Combat . | . . . . Robot Hacks Applied . | . . . . Relay Couplers Released . | . . . . Fabnet Peak Effective % . | . . . . Robots Rewired . | . . . . Allies Hacked . | . . . . Hacks Repelled . | . . . . Allies | -11 -10 -9 -8 -------- Run | Yrd Mat Mat Mat Total Allies . | . . . . Largest Group . | . . . . Highest-Rated Group . | . . . . Highest-Rated Ally . | . . . . Total Orders . | . . . . Ally Attacks . | . . . . Total Damage . | . . . . Kills . | . . . . Allies Corrupted . | . . . . Allies Melted . | . . . . Intel | -11 -10 -9 -8 ------- Run | Yrd Mat Mat Mat Robot Analysis Total . | . . . . Derelict Logs Recovered . | . . . . Drone Launches . | . . . . Drone Recoveries . | . . . . Exploration | -11 -10 -9 -8 ------------- Run | Yrd Mat Mat Mat Turns Passed 3333 | 537 356 2011 429 Spaces Moved 2865 | 293 437 1796 339 Core 67 | 8 . 8 51 Treads 293 | 275 6 . 12 Legs . | . . . . Wheels 177 | 10 167 . . Hover 848 | . 264 584 . Flight 1480 | . . 1204 276 Fastest Speed 29 | 50 56 32 29 Average Speed 78 | 154 66 76 42 Slowest Speed 350 | 160 160 350 145 Overloaded Moves . | . . . . Propulsion Burnouts . | . . . . Robots Hopped 2 | . . 1 1 Cave-ins Triggered . | . . . . Exploration Rate (%) 47 | 11 55 90 35 Regions Visited 3 Branch Regions . Pre-discovered Areas . | . . . . Known Exits Taken . | . . . . Unknown Exits Taken 3 | 1 1 1 . Scrap Searched . | . . . . Spaces Dug . | . . . . Terrain Destroyed 38 | . . 38 . Melee . | . . . . Projectile . | . . . . AOE 38 | . . 38 . Terrain Rammed . | . . . . Walls Destroyed . | . . . . Machines Disabled . | . . . . Actions | -11 -10 -9 -8 --------- Run | Yrd Mat Mat Mat Total 3578 | 330 484 2215 549 Wait 299 | . 3 174 122 Move 2858 | 292 436 1793 337 Hop 2 | . . 1 1 Pick Up 70 | 7 14 41 8 Fast Attach 15 | 6 . 3 6 Attach 26 | 1 . 20 5 Detach 1 | . . 1 . Swap 47 | . 12 30 5 Drop 43 | 1 11 24 7 Fire 200 | 23 8 128 41 Melee . | . . . . Ram 4 | . . . 4 Kick . | . . . . Crush 13 | . . . 13 Escape Stasis . | . . . . Rewire . | . . . . Trap . | . . . . Miscellaneous . | . . . . Route ------- -11/Scrapyard -10/Materials (discovered 2 exits: *Mat x2) -9/Materials (discovered 3 exits: [*Mat x2] / [*Min]) -8/Materials (discovered 1 exit: [*Fac]) History --------- Turn | Location | Event 10 | -11/Scrapyard | Discovered new exit (range 16) 538 | -11/Scrapyard | Entered Materials 539 | -10/Materials | Build established: Mutant 799 | -10/Materials | Discovered new exit (range 11) 885 | -10/Materials | Discovered new exit (range 7) 894 | -10/Materials | Entered another Materials area 894 | -9/Materials | Evolved 2 slots: Propulsion x1, Utility x1 1198 | -9/Materials | Build established: Scavenger-Mutant 1238 | -9/Materials | Discovered new exit (range 8) 1573 | -9/Materials | Core integrity fell below 50% 1612 | -9/Materials | Lost 6 parts (1p3n2w) 1710 | -9/Materials | Discovered new exit (range 15) 1768 | -9/Materials | Repaired Lgt. Assault Rifle 1849 | -9/Materials | Repaired Imp. Heat Sink 1860 | -9/Materials | Discovered new exit (range 7) 2627 | -9/Materials | Core integrity fell below 20% 2905 | -9/Materials | Entered another Materials area 2905 | -8/Materials | Evolved 2 slots: Propulsion x1, Utility x1 3268 | -8/Materials | Discovered new exit (range 13) 3278 | -8/Materials | Lost 5 parts (1p3n1u) 3281 | -8/Materials | Core integrity fell below 50% 3323 | -8/Materials | Core integrity fell below 20% 3334 | -8/Materials | Destroyed by H-55 Commando with Gauss Rifle Last Messages --------------- 03322_ Imp. Targeting Computer destroyed. 03322_ System corrupted by crushing effect (+4). 03322_ K-01 Serf collects debris. 03322_ Slug penetrates Wall. 03323_ Slammed into G-47 Trooper. 03324_ Acquired Adv. Treads. 03326_ Slammed into G-47 Trooper. 03327_ Acquired 4 matter. 03327_ K-01 Serf collects debris. 03327_ Slammed into G-47 Trooper. 03328_ Slug penetrates Wall. 03329_ Slammed into G-47 Trooper. 03330_ Wall collapses. 03330_ K-01 Serf collects debris. 03330_ Slammed into G-47 Trooper. 03331_ Slug penetrates Wall. 03331_ Slammed into G-47 Trooper. 03333_ U-05 Engineer builds a Wall. 03333_ K-01 Serf collects debris. 03334_ Penetrated by Slug. Map ----- +----------------------------------------------------+ | ?????????????????????????????????????????????????? | | ?????????????????????????????????????????????????? | | ?????????????????????????????????????????????????? | | ?????????????????????????????????????????????????? | | ???????????????????????????????????????? ??????? | | ??????????????????????????????????????# ??????? | | ??????????????????????????????????????# #?????? | | ??????????????????????????############# #?????? | | ??????????????????????????# # #?????? | | ??????????????????????????# !!! # #?????? | | ??????????????????????????# !!! # #?????? | | ??????????????????????????# !!! # ####### | | ?????????????????# ??????# # # | | ????????????????? ??????# ! # # | | ????????????????? ??????# # # | | ?????????????????# ??????#####+####### # | | ?????????????????# ??####### # | | ?????????????????# ??# # # | | ?????????????????# ??# """ # ###+### | | ?????????????????# #?# """ #^ | | ?????????????????# #?# """ # | | ???????####+###### ### # """^ """ ""% %"" | | ???????# %#hk # """^ """ """ """ | | ???????# < %+% ! # ""% """ """ """ | | ???????# #%%g= # """ """ """ ^""" | | ???????####+####### # %@= # | | ??????????????????# #%%% # | | ??????????????????# # # | | ??????????????????# ####### | | ??????????????????# ################ | | ??????????????????# #??????????????? | | ??????????????????# T #??????????????? | | ??????????????????##### #??????????????? | | ??????????????????????# "" ????????????? | | ??????????????????????# G"????????????? | | ??????????????????????# "" #???????????? | | ??????????????????????# """ ####???????????? | | ??????????????????????# """ ""?????????????? | | ??????????????????????# """ Y"?????????????? | | ??????????????????????# ""?????????????? | | ??????????????????????# ##?????????????? | | ??????????????????????# ""? #??????????????? | | ??????????????????????# ""? #??????????????? | | ??????????????????????# "?? #??????????????? | | ??????????????????????# ?? ?????????????????? | | ??????????????????????? ???????????????????????? | | ?????????????????????????????????????????????????# | | ?????????????????????????????????????????????????# | | ?????????????????????????????????????????????????# | | ?????????????????????????????????????????????????# | +----------------------------------------------------+ Best States ------------- Heat Dissipation 45 Energy Generation 12 Energy Capacity 375 Matter Stores 500 Matter Capacity 500 Sight Range 18 Terrain Scan Range 16 Terrain Scan Density 10 Additional Mass Support 6 Armor Coverage 150 Evasion (%) 64 Targeting Accuracy 18 Recoil Reduction 2 Item Schematics ----------------- Imp. Flight Unit | -9/Materials | Scanalyzed VTOL Module | -9/Materials | Scanalyzed Robot Schematics ------------------ None Fabricated ------------ Nothing Alien Tech Used ----------------- None Achievements -------------- None Challenges ------------ None Game ------ Seed SmartbombAccelerationMapper Manual? 0 Play Time 00:56:09 Cumulative 6.4 hours Start 2024.04.14 @ 02:43:29 End 2024.04.14 @ 03:44:43 Sessions 1 Manual Loads 0 Difficulty Rogue Special Mode None Game No. 8 Rogue 8 Adventurer 0 Explorer 0 Win Type - Total 0 Types 0/0/0/0/0/0/0/0/0 Lore% 2 Gallery% 10 Achievement% 12 Wizard Run 0 Options --------- Layout 1 ASCII 0 Keyboard 0 Movement Arrows Keybinds 0 Fullscreen 2 Font 32/SmallcapsGlow Map View 50x35 Zoom Use 0% Tactical HUD 1 Map Filters NONE Filters NONE Steam 1 RUN: 2cdee6e4-a4fc-4bc4-96ca-7983ebb5f801